lending/lending_fUSD_20240604
["ID","MTS","AMOUNT","RATE_DAILY","PERIOD"]
[328560473,1717540242055,-500.0,0.00019899,2]
[328560474,1717540242064,-500.0,0.00019899,2]
[328560476,1717540242074,-500.0,0.00019899,2]
[328560478,1717540242083,-366.36832942,0.00019899,2]
[328560480,1717540242094,-133.63167058,0.00019899,2]
[328560482,1717540242103,-500.0,0.00019899,2]
[328560484,1717540242113,-500.0,0.00019899,2]
[328560487,1717540242127,-500.0,0.00019899,2]
[328560489,1717540242138,-500.0,0.00019899,2]
[328560491,1717540242148,-500.0,0.00019899,2]
[328560493,1717540242158,-500.0,0.00019899,2]
[328560495,1717540242168,-500.0,0.00019899,2]
[328560497,1717540242178,-500.0,0.00019899,2]
[328560499,1717540242188,-500.0,0.00019899,2]
[328560500,1717540242199,-500.0,0.00019899,2]
[328560501,1717540242209,-500.0,0.00019899,2]
[328560502,1717540242219,-500.0,0.00019899,2]
[328560503,1717540242229,-500.0,0.00019899,2]
[328560504,1717540242239,-500.0,0.00019899,2]
[328560505,1717540242250,-500.0,0.00019899,2]
[328560506,1717540242260,-500.0,0.00019899,2]
[328560507,1717540242270,-500.0,0.00019899,2]
[328560508,1717540242280,-500.0,0.00019899,2]
[328560509,1717540242290,-500.0,0.00019899,2]
[328560510,1717540242300,-500.0,0.00019899,2]
[328560511,1717540242310,-500.0,0.00019899,2]
[328560513,1717540242320,-500.0,0.00019899,2]
[328560514,1717540242330,-500.0,0.00019899,2]
[328560516,1717540242340,-500.0,0.00019899,2]
[328560518,1717540242350,-500.0,0.00019899,2]
[328560520,1717540242360,-500.0,0.00019899,2]
[328560522,1717540242369,-500.0,0.00019899,2]
[328560524,1717540242379,-500.0,0.00019899,2]
[328560526,1717540242391,-500.0,0.00019899,2]
[328560528,1717540242400,-500.0,0.00019899,2]
[328560530,1717540242410,-500.0,0.00019899,2]
[328560532,1717540242420,-500.0,0.00019899,2]
[328560534,1717540242430,-500.0,0.00019899,2]
[328560536,1717540242440,-500.0,0.00019899,2]
[328560538,1717540242450,-500.0,0.00019899,2]
[328560540,1717540242459,-500.0,0.00019899,2]
[328560543,1717540242476,-500.0,0.00019899,2]
[328560546,1717540242495,-150.56999076,0.00019899,2]
[328560549,1717540242514,-500.0,0.00019899,2]
[328560552,1717540242534,-500.0,0.00019899,2]
[328560554,1717540242551,-500.0,0.00019899,2]
[328560557,1717540242568,-500.0,0.00019899,2]
[328560560,1717540242587,-500.0,0.00019899,2]
[328560563,1717540242607,-500.0,0.00019899,2]
[328560566,1717540242625,-500.0,0.00019899,2]
[328560569,1717540242645,-500.0,0.00019899,2]
[328560572,1717540242661,-500.0,0.00019899,2]
[328560576,1717540242683,-500.0,0.00019899,2]
[328560578,1717540242703,-500.0,0.00019899,2]
[328560581,1717540242716,-500.0,0.00019899,2]
[328560584,1717540242734,-500.0,0.00019899,2]
[328560586,1717540242747,-500.0,0.00019899,2]
[328560589,1717540242764,-500.0,0.00019899,2]
[328560592,1717540242777,-500.0,0.00019899,2]
[328560595,1717540242802,-500.0,0.00019899,2]
[328560598,1717540242818,-300.0,0.00019899,2]
[328560601,1717540242834,-500.0,0.00019899,2]
[328560604,1717540242849,-500.0,0.00019899,2]
[328560606,1717540242865,-500.0,0.00019899,2]
[328560609,1717540242881,-11465.87963741,0.000199,2]
[328560612,1717540242896,-9954.32997443,0.000199,2]
[328560615,1717540242916,-1511.54966297,0.000199,2]
[328560617,1717540242931,-11465.8796374,0.000199,2]
[328560620,1717540242947,-187.34820018,0.0002,2]
[328560622,1717540242961,-155.0,0.0002,2]
[328560625,1717540242977,-1010.45200313,0.0002,2]
[328560628,1717540242992,-863.88782738,0.0002,2]
[328560630,1717540243007,-155.0,0.0002,2]
[328560633,1717540243022,-155.0,0.0002,2]
[328560636,1717540243038,-311.99149,0.0002004,2]
[328560638,1717540243053,-226.54621656,0.000201,2]
[328560639,1717540243068,-620.36,0.00020175,2]
[328560640,1717540243083,-166.26,0.00020593,2]
[328560641,1717540243098,-3784.01,0.0002077,2]
[328560642,1717540243114,-1000.0,0.00021119,2]
[328560643,1717540243129,-2214.0,0.000213,5]
[328560644,1717540243144,-217.46486377,0.00021382,2]
[328560645,1717540243159,-728.88,0.00021398,2]
[328560646,1717540243173,-1022.90774952,0.00021433,2]
[328560647,1717540243188,-283.446,0.0002163,2]
[328560648,1717540243203,-1116.521,0.0002163,2]
[328560649,1717540243218,-439.838,0.0002163,2]
[328560650,1717540243233,-614.0,0.0002163,2]
[328560651,1717540243249,-1629.925,0.0002163,2]
[328560652,1717540243264,-614.0,0.0002163,2]
[328560653,1717540243279,-372.55,0.00021918,2]
[328560654,1717540243295,-177.16,0.00021918,2]
[328560655,1717540243310,-250.0,0.00021918,2]
[328560656,1717540243326,-789.68098133,0.00022,2]
[328560657,1717540243346,-620.36,0.00022439,2]
[328560658,1717540243362,-200.0,0.000225,2]
[328560659,1717540243401,-1000.0,0.00023039,2]
[328560660,1717540243424,-243.82803384,0.00023124,2]
[328560661,1717540243444,-166.26,0.00023167,2]
[328560662,1717540243463,-31736.957,0.00023224,4]
[328560663,1717540243484,-31736.958,0.00023224,4]
[328560664,1717540243501,-31736.958,0.00023224,4]
[328560665,1717540243518,-31736.957,0.00023224,4]
[328560666,1717540243534,-16585.34594136,0.00023224,4]
[328560667,1717540243752,-15151.61205864,0.00023224,4]
[328560668,1717540243762,-217.46486377,0.00023409,2]
[328560669,1717540243771,-151.72,0.00023451,2]
[328560670,1717540243781,-446.52248219,0.00023461,2]
[328560671,1717540243790,-37559.36475608,0.00023461,2]
[328560672,1717540243800,-1046.18219115,0.00023461,2]
[328560673,1717540243809,-1041.80097141,0.00023461,2]
[328560674,1717540243819,-500.0,0.00023461,2]
[328560675,1717540243828,-180.55500762,0.00023461,2]
[328560676,1717540243838,-265.356416,0.00023461,2]
[328560677,1717540243848,-1406.58185732,0.00023461,7]
[328560678,1717540243859,-151.0,0.00023461,7]
[328560679,1717540243868,-244.233872,0.00023461,7]
[328560680,1717540243878,-151.0,0.00023461,7]
[328560681,1717540243888,-205.086487,0.00023461,7]
[328560682,1717540243897,-205.086487,0.00023461,7]
[328560683,1717540243906,-151.0,0.00023461,7]
[328560684,1717540243918,-151.0,0.00023461,7]
[328560685,1717540243927,-151.0,0.00023461,7]
[328560686,1717540243937,-250.802305,0.00023461,7]
[328560687,1717540243947,-151.0,0.00023461,7]
[328560688,1717540243955,-151.0,0.00023461,7]
[328560689,1717540243965,-250.802305,0.00023461,7]
[328560690,1717540243974,-151.0,0.00023461,7]
[328560691,1717540243983,-151.0,0.00023461,7]
[328560692,1717540243992,-345.608599,0.00023461,7]
[328560693,1717540244002,-151.0,0.00023461,7]
[328560694,1717540244011,-345.608599,0.00023461,7]
[328560695,1717540244020,-151.0,0.00023461,7]
[328560696,1717540244029,-156.490017,0.00023461,7]
[328560697,1717540244039,-263.097953,0.00023461,7]
[328560698,1717540244048,-263.097953,0.00023461,7]
[328560699,1717540244057,-151.0,0.00023461,7]
[328560700,1717540244066,-32733.888,0.00023461,4]
[328560701,1717540244076,-1729.22029187,0.00023461,4]
[328560702,1717540244088,-516.96,0.00023461,4]
[328560703,1717540244099,-1763.37108582,0.00023461,4]
[328560704,1717540244110,-588.209208,0.00023461,4]
[328560705,1717540244121,-25189.08888552,0.00023461,4]
[328560706,1717540244144,-910.0,0.00023461,4]
[328560707,1717540244156,-958.94354859,0.00023461,4]
[328560708,1717540244302,-151.0,0.00023461,7]
[328560709,1717540244312,-1078.0959802,0.00023461,4]
[328560710,1717540244321,-17024.61544791,0.00023461,4]
[328560711,1717540244386,-720.20342469,0.00023461,4]
[328560712,1717540244529,-14989.0691274,0.00023461,4]
[328560713,1717540244539,-5913.46918594,0.00023461,4]
[328560716,1717540245909,-623.00611072,0.00018122,2]
[328560754,1717541434911,-562.4996314,0.00012499,2]
[328560755,1717541434923,-8357.48293258,0.00012499,2]
[328560756,1717541434932,-252.26888453,0.000125,2]
[328560757,1717541434942,-300.0,0.00013698,2]
[328560758,1717541434952,-1488.74285699,0.00013699,2]
[328560759,1717541434961,-403.0,0.00015012,2]
[328560760,1717541434971,-179.48,0.00016712,2]
[328560761,1717541434981,-955.56684863,0.00017855,2]
[328560762,1717541434991,-407.04296718,0.00018121,2]
[328560763,1717541435001,-1388.61702236,0.00018121,2]
[328560764,1717541435010,-5485.96,0.00018121,2]
[328560765,1717541435019,-499.99,0.00018121,2]
[328560766,1717541435028,-1046.18219115,0.00018122,2]
[328560767,1717541435037,-37559.36475608,0.00018122,2]
[328560768,1717541435047,-180.55500762,0.00018122,2]
[328560769,1717541435057,-1041.80097141,0.00018122,2]
[328560770,1717541435066,-242.93,0.00018789,2]
[328560771,1717541435076,-1043.31602865,0.00018789,2]
[328560772,1717541435086,-155.0,0.00018794,2]
[328560773,1717541435095,-213.15922766,0.00018795,2]
[328560774,1717541435104,-545.9,0.00018845,2]
[328560775,1717541435114,-411.38464796,0.00019,2]
[328560776,1717541435123,-446.52248219,0.0002,2]
[328560777,1717541435132,-155.0,0.0002,2]
[328560778,1717541435142,-155.0,0.0002,2]
[328560779,1717541435151,-155.0,0.0002,2]
[328560780,1717541435161,-1010.45200313,0.0002,2]
[328560781,1717541435170,-226.54621656,0.000201,2]
[328560782,1717541435180,-524.93,0.00020598,2]
[328560783,1717541435189,-2751.0,0.00020664,2]
[328560784,1717541435200,-200.0,0.00020671,2]
[328560785,1717541435210,-23890.0,0.00020672,2]
[328560786,1717541435219,-250.0,0.00020681,2]
[328560787,1717541435228,-500.0,0.00020689,2]
[328560788,1717541435237,-250.0,0.000207,2]
[328560789,1717541435246,-855.76,0.000207,2]
[328560790,1717541435255,-15033.94,0.00020702,2]
[328560791,1717541435264,-500.0,0.00020731,2]
[328560792,1717541435273,-150.0,0.00020746,2]
[328560793,1717541435282,-1394.84,0.00020754,2]
[328560794,1717541435291,-182.62,0.00020771,2]
[328560796,1717541435300,-226.33,0.00020782,2]
[328560798,1717541435310,-156.1,0.00020889,2]
[328560800,1717541435319,-641.53,0.0002105,2]
[328560802,1717541435329,-545.9,0.00021109,2]
[328560804,1717541435338,-500.0,0.00021136,2]
[328560806,1717541435348,-359.279,0.00021136,2]
[328560808,1717541435357,-1224.0,0.00021136,2]
[328560810,1717541435367,-440.0,0.00021136,2]
[328560812,1717541435376,-1646.0,0.00021136,2]
[328560814,1717541435385,-545.0,0.00021136,2]
[328560816,1717541435395,-1043.31602865,0.00021243,2]
[328560818,1717541435404,-1000.0,0.00021296,2]
[328560820,1717541435414,-524.93,0.00021628,2]
[328560822,1717541435423,-201.543684,0.00021644,2]
[328560824,1717541435432,-159.82,0.00021838,2]
[328560826,1717541435442,-159.82,0.00021849,2]
[328560828,1717541435452,-159.82,0.0002186,2]
[328560830,1717541435461,-165.92,0.0002187,2]
[328560831,1717541435470,-159.82,0.00021871,2]
[328560833,1717541435479,-159.82,0.00021882,2]
[328560835,1717541435490,-159.82,0.00021893,2]
[328560838,1717541435499,-159.82,0.00021904,2]
[328560840,1717541435509,-159.82,0.00021914,2]
[328560841,1717541435517,-180.21,0.00021918,2]
[328560843,1717541435527,-250.0,0.00021918,2]
[328560845,1717541435536,-159.82,0.00021925,2]
[328560847,1717541435546,-159.82,0.00021936,2]
[328560850,1717541435556,-159.82,0.00021947,2]
[328560852,1717541435566,-366.66,0.00021969,2]
[328560854,1717541435575,-156.1,0.00021977,2]
[328560856,1717541435585,-272.52552348,0.00022,2]
[328560858,1717541435595,-300.0,0.00022032,2]
[328560860,1717541435604,-500.0,0.00022232,2]
[328560862,1717541435614,-167.0,0.00022443,2]
[328560864,1717541435623,-201.543684,0.00022466,2]
[328560866,1717541435633,-500.0,0.00022506,2]
[328560868,1717541435643,-500.0,0.00022506,2]
[328560870,1717541435652,-524.93,0.00022658,2]
[328560872,1717541435662,-24075.73822541,0.000229,5]
[328560874,1717541435672,-195.57843436,0.00023122,2]
[328560876,1717541435681,-862.43942099,0.00023123,2]
[328560889,1717541435794,-150.53471,0.00023226,2]
[328560890,1717541435803,-150.0,0.00023226,2]
[328560892,1717541435813,-201.543684,0.00023288,2]
[328560893,1717541435822,-1913.382886,0.000233,2]
[328560894,1717541435831,-369.23754265,0.00023328,2]
[328560895,1717541435840,-215.0,0.00023361,2]
[328560896,1717541435850,-4832.1879,0.00023361,2]
[328560897,1717541435861,-545.9,0.00023372,2]
[328560898,1717541435870,-300.0,0.00023402,2]
[328560899,1717541435879,-855.76,0.0002344,2]
[328560900,1717541435889,-410.5918966,0.00023458,2]
[328560901,1717541435900,-354.46847898,0.0002346,2]
[328560902,1717541435911,-1070.78103848,0.0002346,10]
[328560903,1717541435920,-3510.98392693,0.0002346,2]
[328560904,1717541435930,-2000.0,0.00023461,2]
[328560905,1717541435939,-200.0,0.00023461,2]
[328560906,1717541435950,-2000.0,0.00023461,2]
[328560907,1717541435960,-200.0,0.00023461,2]
[328560908,1717541435969,-642.06768,0.00023461,2]
[328560909,1717541435979,-3111.05664092,0.00023461,4]
[328560910,1717541436326,-1661.1859856,0.00023461,4]
[328560911,1717541436346,-707.08,0.00023461,4]
[328560912,1717541436360,-306.01858152,0.00023461,4]
[328560913,1717541436373,-6125.51979196,0.00023461,4]
[328560914,1717541436382,-679.65839029,0.00023461,4]
[328560915,1717541436393,-11231.20360971,0.00023461,4]
[328560916,1717541436403,-11910.862,0.00023461,4]
[328560917,1717541436412,-11910.862,0.00023461,4]
[328560918,1717541436423,-11910.861,0.00023461,4]
[328560919,1717541436432,-1000.0,0.0002347,2]
[328560920,1717541436442,-1293.40575484,0.0002347,2]
[328560921,1717541436453,-33627.97803897,0.0002347,2]
[328560922,1717541436462,-1018.609127,0.000236,2]
[328560923,1717541436472,-500.0,0.00023602,2]
[328560924,1717541436482,-500.0,0.00023602,2]
[328560925,1717541436492,-1000.0,0.0002367,2]
[328560926,1717541436501,-167.0,0.00023678,2]
[328560927,1717541436511,-524.93,0.00023688,2]
[328560928,1717541436520,-2000.0,0.00023696,2]
[328560929,1717541436530,-200.0,0.00023696,2]
[328560930,1717541436539,-2000.0,0.00023696,2]
[328560931,1717541436549,-200.0,0.00023696,2]
[328560932,1717541436559,-4173.2641146,0.00023697,2]
[328560933,1717541436569,-2000.0,0.00023933,2]
[328560934,1717541436579,-200.0,0.00023933,2]
[328560935,1717541436589,-1831.94454081,0.00023933,2]
[328560936,1717541436601,-168.05545919,0.00023933,2]
[328560937,1717541436610,-200.0,0.00023933,2]
[328560938,1717541436620,-14.26205536,0.00023958,2]
[328560939,1717541436631,-664.57727663,0.00023958,2]
[328560940,1717541436756,-321.16066801,0.00023958,2]
[328560941,1717541436766,-1000.0,0.0002397,2]
[328560942,1717541436775,-201.543684,0.0002411,2]
[328560943,1717541436784,-2000.0,0.00024172,2]
[328560944,1717541436793,-200.0,0.00024172,2]
[328560945,1717541436803,-180.25772287,0.0002421,2]
[328560946,1717541436812,-180.0,0.0002423,2]
[328560947,1717541436822,-173.45,0.00024384,2]
[328560948,1717541436831,-163.21,0.00024384,2]
[328560949,1717541436840,-156.94,0.00024384,2]
[328560950,1717541436850,-156.9,0.00024384,2]
[328560951,1717541436859,-2000.0,0.00024414,2]
[328560952,1717541436869,-200.0,0.00024414,2]
[328560953,1717541436879,-124.83792512,0.00024698,2]
[328560954,1717541436891,-375.16207488,0.00024698,2]
[328560955,1717541436904,-500.0,0.00024698,2]
[328560956,1717541436913,-819.71727186,0.00024698,2]
[328560957,1717541436922,-305.12065326,0.00024718,2]
[328560958,1717541436934,-219.80934674,0.00024718,2]
[328560959,1717541436945,-800.0,0.00024767,2]
[328560960,1717541436955,-101.17065321,0.0002477,2]
[328560961,1717541436967,-898.82934679,0.0002477,2]
[328560962,1717541436976,-867.1546537,0.00024798,2]
[328560963,1717541436989,-270.43870298,0.00024798,2]
[328560964,1717541437001,-601.41403316,0.00024798,2]
[328560965,1717541437024,-1000.0,0.00024798,2]
[328560981,1717541441411,-283.57478318,0.0002346,2]
[328560982,1717541441422,-422.75521682,0.00024798,2]
[328560983,1717541442501,-7872.39934033,0.00024798,2]
[328560984,1717541442512,-11034.16194695,0.00024798,2]
[328560985,1717541442522,-11034.16194695,0.00024798,2]
[328560986,1717541442531,-727.60116862,0.00024799,2]
[328560987,1717541442541,-727.60116862,0.00024799,2]
[328560988,1717541442551,-6789.47504739,0.000249,2]
[328560989,1717541442561,-1500.0,0.000249,2]
[328560990,1717541442570,-167.0,0.00024913,2]
[328560991,1717541442580,-201.543684,0.00024932,2]
[328560992,1717541442590,-155.0,0.00025,2]
[328560993,1717541442599,-325.64160337,0.00025,2]
[328560994,1717541442609,-1274.90079038,0.00025,2]
[328560995,1717541442619,-1250.0,0.00025,2]
[328560996,1717541442629,-928.90688563,0.00025,2]
[328560997,1717541442638,-1000.0,0.00025205,2]
[328560998,1717541442648,-727.60116862,0.00025218,2]
[328560999,1717541442658,-11034.16194695,0.00025218,2]
[328561000,1717541442667,-819.71727186,0.00025382,2]
[328561001,1717541442677,-200.324694,0.000254,2]
[328561002,1717541442686,-155.0,0.00025499,2]
[328561003,1717541442696,-545.9,0.00025636,2]
[328561004,1717541442706,-201.543684,0.00025753,2]
[328561005,1717541442716,-1000.0,0.0002577,2]
[328561006,1717541442725,-610.97355841,0.00025794,2]
[328561007,1717541442734,-500.0,0.00025794,2]
[328561008,1717541442744,-2000.0,0.000258,2]
[328561009,1717541442754,-2000.0,0.0002581,2]
[328561010,1717541442763,-2000.0,0.0002582,2]
[328561011,1717541442773,-2000.0,0.0002583,2]
[328561012,1717541442783,-3056.371447,0.0002584,2]
[328561013,1717541442792,-218.0,0.0002587,2]
[328561014,1717541442801,-191.11,0.0002589,2]
[328561016,1717541442811,-422.1,0.0002589,2]
[328561017,1717541442820,-150.0,0.0002589,2]
[328561018,1717541442830,-352.96,0.0002589,2]
[328561019,1717541442840,-300.56,0.0002589,2]
[328561020,1717541442849,-150.0,0.0002589,2]
[328561021,1717541442859,-422.1,0.0002589,2]
[328561022,1717541442868,-163.99,0.0002589,2]
[328561023,1717541442877,-150.0,0.0002589,2]
[328561024,1717541442887,-150.0,0.0002589,2]
[328561025,1717541442896,-352.96,0.0002589,2]
[328561026,1717541442910,-150.0,0.0002589,2]
[328561027,1717541442920,-352.96,0.0002589,2]
[328561028,1717541442930,-163.99,0.0002589,2]
[328561029,1717541442941,-150.0,0.0002589,2]
[328561032,1717541442951,-260.07,0.0002589,2]
[328561034,1717541442960,-150.0,0.0002589,2]
[328561035,1717541442970,-150.0,0.0002589,2]
[328561036,1717541442981,-352.96,0.0002589,2]
[328561037,1717541442993,-163.99,0.0002589,2]
[328561038,1717541443004,-727.60116862,0.00025998,2]
[328561039,1717541443013,-11034.16194695,0.00025998,2]
[328561040,1717541443023,-172.0,0.00026,2]
[328561041,1717541443032,-819.71727186,0.00026067,2]
[328561042,1717541443041,-167.0,0.00026147,2]
[328561043,1717541443055,-855.76,0.0002618,2]
[328561044,1717541443065,-1000.0,0.00026222,2]
[328561045,1717541443074,-1000.0,0.00026222,2]
[328561046,1717541443084,-1000.0,0.00026222,2]
[328561047,1717541443093,-1000.0,0.00026222,2]
[328561048,1717541443103,-1000.0,0.00026222,2]
[328561049,1717541443113,-1000.0,0.00026222,2]
[328561050,1717541443123,-1000.0,0.00026222,2]
[328561052,1717541443133,-1000.0,0.00026222,2]
[328561054,1717541443143,-1000.0,0.00026222,2]
[328561055,1717541443153,-1000.0,0.00026222,2]
[328561056,1717541443162,-1000.0,0.00026222,2]
[328561057,1717541443172,-1000.0,0.00026222,2]
[328561058,1717541443182,-267.0,0.00026222,2]
[328561059,1717541443192,-500.0,0.00026222,2]
[328561060,1717541443204,-800.0,0.00026274,2]
[328561061,1717541443214,-14235.52,0.00026301,2]
[328561062,1717541443224,-218.0,0.0002644,2]
[328561063,1717541443233,-201.543684,0.00026575,2]
[328561064,1717541443243,-2054.22929284,0.000266,2]
[328561065,1717541443254,-1000.0,0.0002662,2]
[328561066,1717541443263,-352.96,0.00026712,2]
[328561067,1717541443274,-150.0,0.00026712,2]
[328561068,1717541443284,-150.0,0.00026712,2]
[328561069,1717541443293,-163.99,0.00026712,2]
[328561070,1717541443303,-150.0,0.00026712,2]
[328561071,1717541443314,-300.0,0.00026712,2]
[328561072,1717541443324,-163.99,0.00026712,2]
[328561073,1717541443334,-352.96,0.00026712,2]
[328561074,1717541443343,-163.99,0.00026712,2]
[328561075,1717541443353,-352.96,0.00026712,2]
[328561076,1717541443363,-352.96,0.00026712,2]
[328561077,1717541443372,-163.99,0.00026712,2]
[328561078,1717541443382,-352.96,0.00026712,2]
[328561079,1717541443391,-163.99,0.00026712,2]
[328561080,1717541443401,-212.27,0.00026712,2]
[328561081,1717541443410,-819.71727186,0.00026751,2]
[328561082,1717541443420,-727.60116862,0.00026779,2]
[328561083,1717541443429,-11034.16194695,0.00026779,2]
[328561084,1717541443439,-332.9935665,0.0002679,2]
[328561085,1717541443449,-458.22106508,0.0002689,2]
[328561086,1717541443459,-500.0,0.000269,2]
[328561087,1717541443468,-4025.22914722,0.00027,2]
[328561088,1717541443477,-176.7101098,0.00027,4]
[328561089,1717541443486,-1300.0,0.00027,2]
[328561090,1717541443496,-4121.0,0.00027,2]
[328561091,1717541443507,-843.0,0.00027,2]
[328561092,1717541443517,-2000.0,0.00027,2]
[328561093,1717541443526,-150.0,0.00027,2]
[328561094,1717541443536,-218.0,0.0002701,2]
[328561095,1717541443546,-3706.514295,0.0002701,2]
[328561096,1717541443555,-806.82910337,0.0002739,2]
[328561097,1717541443565,-201.543684,0.00027397,2]
[328561098,1717541443575,-180.21,0.00027397,2]
[328561099,1717541443585,-200.0,0.000274,2]
[328561100,1717541443595,-161.15,0.000274,2]
[328561101,1717541443604,-152.0,0.0002741,3]
[328561102,1717541443616,-163.99,0.00027534,2]
[328561103,1717541443627,-163.99,0.00027534,2]
[328561104,1717541443637,-163.75,0.00027534,2]
[328561105,1717541443646,-727.60116862,0.00027559,2]
[328561106,1717541443656,-11034.16194695,0.00027559,2]
[328561107,1717541443666,-218.0,0.0002758,2]
[328561108,1717541443675,-180.343852,0.00027606,2]
[328561109,1717541443684,-375.092392,0.00027606,2]
[328561110,1717541443694,-159.054366,0.00027606,2]
[328561111,1717541443704,-300.0,0.00027652,2]
[328561112,1717541443715,-150.0,0.00027654,2]
[328561113,1717541443724,-1500.0,0.000277,2]
[328561114,1717541443734,-1500.0,0.0002779,2]
[328561115,1717541443743,-1500.0,0.0002783,2]
[328561116,1717541443753,-150.0,0.00027833,2]
[328561117,1717541443763,-150.0,0.00027852,2]
[328561119,1717541443772,-545.9,0.000279,2]
[328561120,1717541443782,-150.0,0.00027919,2]
[328561121,1717541443791,-375.092392,0.00027951,2]
[328561122,1717541443801,-150.0,0.00027951,2]
[328561123,1717541443810,-1500.0,0.00027969,2]
[328561124,1717541443820,-150.0,0.00027978,2]
[328561125,1717541443829,-22186.38290979,0.00028,2]
[328561126,1717541443839,-733.18794817,0.00028004,2]
[328561127,1717541443850,-150.0,0.0002801,2]
[328561128,1717541443860,-300.0,0.00028041,2]
[328561129,1717541443870,-150.0,0.00028065,2]
[328561130,1717541443879,-150.0,0.00028069,2]
[328561131,1717541443889,-150.0,0.00028078,2]
[328561132,1717541443900,-872.03,0.00028082,2]
[328561133,1717541443912,-416.87,0.00028082,2]
[328561134,1717541443923,-416.87,0.00028082,2]
[328561135,1717541443933,-414.6,0.00028082,2]
[328561136,1717541443945,-150.0,0.00028091,2]
[328561137,1717541443956,-150.0,0.00028109,2]
[328561138,1717541443967,-1500.0,0.00028122,2]
[328561139,1717541443978,-300.0,0.00028149,2]
[328561140,1717541443988,-218.0,0.0002815,2]
[328561141,1717541443997,-1500.0,0.00028158,2]
[328561142,1717541444007,-150.0,0.00028168,2]
[328561143,1717541444017,-150.0,0.00028169,2]
[328561144,1717541444026,-302.78707862,0.0002817,2]
[328561145,1717541444037,-1500.0,0.00028187,2]
[328561146,1717541444047,-168.98643813,0.000282,2]
[328561147,1717541444056,-365.60448397,0.000282,2]
[328561148,1717541444065,-3162.483563,0.000282,7]
[328561149,1717541444075,-151.0,0.000282,7]
[328561150,1717541444084,-3162.483563,0.000282,7]
[328561151,1717541444094,-151.0,0.000282,7]
[328561152,1717541444103,-158.776451,0.000282,7]
[328561153,1717541444113,-184.577839,0.000282,7]
[328561154,1717541444123,-184.577839,0.000282,7]
[328561155,1717541444132,-151.0,0.000282,7]
[328561156,1717541444142,-151.0,0.000282,7]
[328561157,1717541444275,-236.029114,0.000282,7]
[328561158,1717541444284,-150.0,0.00028206,2]
[328561159,1717541444294,-150.0,0.00028212,2]
[328561160,1717541444303,-150.0,0.00028215,2]
[328561161,1717541444313,-201.543684,0.00028219,14]
[328561162,1717541444322,-150.0,0.00028238,2]
[328561163,1717541444332,-150.0,0.00028246,2]
[328561164,1717541444342,-150.0,0.00028269,2]
[328561165,1717541444351,-150.0,0.00028281,2]
[328561166,1717541444360,-150.0,0.00028291,2]
[328561167,1717541444380,-150.0,0.00028292,2]
[328561168,1717541444390,-151.0,0.00028292,7]
[328561169,1717541444400,-151.0,0.00028292,7]
[328561170,1717541444410,-311.047739,0.00028292,7]
[328561171,1717541444420,-311.047739,0.00028292,7]
[328561172,1717541444430,-153.447692,0.00028292,7]
[328561173,1717541444441,-151.0,0.00028292,7]
[328561174,1717541444451,-180.343852,0.00028296,2]
[328561175,1717541444461,-375.092392,0.00028296,2]
[328561176,1717541444471,-150.0,0.00028298,2]
[328561177,1717541444481,-150.0,0.00028316,2]